{"text_format":"1","workbook":"xlsx","n_sheets":2,"sheets":["Tabelle1","Tabelle2"],"not_rendered":{"charts":0,"images":0,"macros":1,"external_links":0,"defined_names":5,"comments":0,"pivot_tables":0},"unopened":[],"bounds":{"document_bytes":16777216,"sheet_cells":100000,"rows_first":2000,"rows_last":500,"rows_between":2000,"halvings":0,"cell_chars":16384,"cell_head_chars":4096},"cells_cut":0,"cells_raw":0,"read":"whole","date_system":"1900"}

{"sheet":"Tabelle1","index":0,"n_rows":106,"n_cols":9,"rows_kept":106,"cut":false,"hidden":false,"merged":[[4,0,84,0],[85,0,94,0],[99,2,99,3],[97,2,97,3],[2,8,3,8],[2,4,2,5],[2,6,2,7],[2,3,3,3],[2,2,3,2],[97,4,97,5],[97,6,97,7],[98,2,98,3]]}
["Titolo del progetto"]
["Data"]
[null,"Fonte di finanziamento","Fonte di finanziamento","Tipo di finanziamento","pianificato",null,"confermato",null,"Stato"]
[null,null,null,null,"Importo (€)","%","Importo (€)","%"]
["Contributi e finanziamenti","Contributi (Paese 1)","Contributi (Paese 1)",null,null,{"$f":"IF(E5>0,E5/$E$96,\"\")","v":""},null,{"$f":"IF(G5>0,G5/$E$96,\"\")","v":""}]
[null,"BLS","IDM Alto Adige",null,null,"",null,""]
[null,null,null,null,null,"",null,""]
[null,null,null,null,null,"",null,""]
[null,"Finanziamenti (Paese 1)","Finanziamenti (Paese 1)",null,null,"",null,""]
[null,null,null,null,null,"",null,""]
[null,null,null,null,null,"",null,""]
[null,null,null,null,null,"",null,""]
[null,"Quota (Paese 1)","Quota (Paese 1)",null,{"$f":"SUBTOTAL(9,E5:E12)","v":0},"",{"$f":"SUBTOTAL(9,G5:G12)","v":0},""]
[null,"Contributi (Paese 2)","Contributi (Paese 2)",null,null,"",null,""]
[null,null,null,null,null,"",null,""]
[null,null,null,null,null,"",null,""]
[null,null,null,null,null,"",null,""]
[null,"Finanziamenti (Paese 2)","Finanziamenti (Paese 2)",null,null,"",null,""]
[null,null,null,null,null,"",null,""]
[null,null,null,null,null,"",null,""]
[null,null,null,null,null,"",null,""]
[null,"Quota (Paese 2)","Quota (Paese 2)",null,{"$f":"SUBTOTAL(9,E14:E21)","v":0},"",{"$f":"SUBTOTAL(9,G14:G21)","v":0},""]
[null,"Contributi (Paese 3)","Contributi (Paese 3)",null,null,"",null,""]
[null,null,null,null,null,"",null,""]
[null,null,null,null,null,"",null,""]
[null,null,null,null,null,"",null,""]
[null,"Finanziamenti (Paese 3)","Finanziamenti (Paese 3)",null,null,"",null,""]
[null,null,null,null,null,"",null,""]
[null,null,null,null,null,"",null,""]
[null,null,null,null,null,"",null,""]
[null,"Quota (Paese 3)","Quota (Paese 3)",null,{"$f":"SUBTOTAL(9,E23:E30)","v":0},"",{"$f":"SUBTOTAL(9,G23:G30)","v":0},""]
[null,"Contributi (Paese 4)","Contributi (Paese 4)",null,null,"",null,""]
[null,null,null,null,null,"",null,""]
[null,null,null,null,null,"",null,""]
[null,null,null,null,null,"",null,""]
[null,"Finanziamenti (Paese 4)","Finanziamenti (Paese 4)",null,null,"",null,{"$f":"IF(G36>0,G36/$E$96,\"\")","v":""}]
[null,null,null,null,null,{"$f":"IF(E37>0,E37/$E$96,\"\")","v":""},null,""]
[null,null,null,null,null,"",null,""]
[null,null,null,null,null,"",null,""]
[null,"Quota (Paese 4)","Quota (Paese 4)",null,{"$f":"SUBTOTAL(9,E32:E39)","v":0},"",{"$f":"SUBTOTAL(9,G32:G39)","v":0},""]
[null,"Contributi (Paese 5)","Contributi (Paese 5)",null,null,"",null,""]
[null,null,null,null,null,"",null,""]
[null,null,null,null,null,"",null,""]
[null,null,null,null,null,"",null,""]
[null,"Finanziamenti (Paese 5)","Finanziamenti (Paese 5)",null,null,"",null,""]
[null,null,null,null,null,"",null,""]
[null,null,null,null,null,"",null,""]
[null,null,null,null,null,"",null,""]
[null,"Quota (Paese 5)","Quota (Paese 5)",null,{"$f":"SUBTOTAL(9,E41:E48)","v":0},"",{"$f":"SUBTOTAL(9,G41:G48)","v":0},""]
[null,"Contributi (Paese 6)","Contributi (Paese 6)",null,null,"",null,""]
[null,null,null,null,null,"",null,""]
[null,null,null,null,null,"",null,""]
[null,null,null,null,null,"",null,""]
[null,"Finanziamenti (Paese 6)","Finanziamenti (Paese 6)",null,null,"",null,""]
[null,null,null,null,null,"",null,""]
[null,null,null,null,null,"",null,""]
[null,null,null,null,null,"",null,""]
[null,"Quota (Paese 6)","Quota (Paese 6)",null,{"$f":"SUBTOTAL(9,E50:E57)","v":0},"",{"$f":"SUBTOTAL(9,G50:G57)","v":0},""]
[null,"Contributi (Paese 7)","Contributi (Paese 7)",null,null,"",null,""]
[null,null,null,null,null,"",null,""]
[null,null,null,null,null,"",null,""]
[null,null,null,null,null,"",null,""]
[null,"Finanziamenti (Paese 7)","Finanziamenti (Paese 7)",null,null,"",null,""]
[null,null,null,null,null,"",null,""]
[null,null,null,null,null,"",null,""]
[null,null,null,null,null,"",null,""]
[null,"Quota (Paese 7)","Quota (Paese 7)",null,{"$f":"SUBTOTAL(9,E59:E66)","v":0},"",{"$f":"SUBTOTAL(9,G59:G66)","v":0},""]
[null,"Contributi (Paese 8)","Contributi (Paese 8)",null,null,"",null,{"$f":"IF(G68>0,G68/$E$96,\"\")","v":""}]
[null,null,null,null,null,{"$f":"IF(E69>0,E69/$E$96,\"\")","v":""},null,""]
[null,null,null,null,null,"",null,""]
[null,null,null,null,null,"",null,""]
[null,"Finanziamenti (Paese 8)","Finanziamenti (Paese 8)",null,null,"",null,""]
[null,null,null,null,null,"",null,""]
[null,null,null,null,null,"",null,""]
[null,null,null,null,null,"",null,""]
[null,"Quota (Paese 8)","Quota (Paese 8)",null,{"$f":"SUBTOTAL(9,E68:E75)","v":0},"",{"$f":"SUBTOTAL(9,G68:G75)","v":0},""]
[null,"Contributi (Paese 9)","Contributi (Paese 9)",null,null,"",null,""]
[null,null,null,null,null,"",null,""]
[null,null,null,null,null,"",null,""]
[null,null,null,null,null,"",null,""]
[null,"Finanziamenti (Paese 9)","Finanziamenti (Paese 9)",null,null,"",null,""]
[null,null,null,null,null,"",null,""]
[null,null,null,null,null,"",null,""]
[null,null,null,null,null,"",null,""]
[null,"Quota (Paese 9)","Quota (Paese 9)",null,{"$f":"SUBTOTAL(9,E77:E84)","v":0},"",{"$f":"SUBTOTAL(9,G77:G84)","v":0},""]
["Apporto del produttore","Mezzi finanziari propri","Mezzi finanziari propri",null,null,"",null,""]
[null,null,null,null,null,"",null,""]
[null,null,null,null,null,"",null,""]
[null,"Apporto diretto di mezzi e servizi","Apporto diretto di mezzi e servizi",null,null,"",null,""]
[null,null,null,null,null,"",null,""]
[null,null,null,null,null,"",null,""]
[null,"Altro","Altro",null,null,"",null,""]
[null,null,null,null,null,"",null,""]
[null,null,null,null,null,{"$f":"IF(E94>0,E94/$E$96,\"\")","v":""},null,{"$f":"IF(G94>0,G94/$E$96,\"\")","v":""}]
[null,"Somma Apporto del produttore","Somma Apporto del produttore",null,{"$f":"SUBTOTAL(9,E86:E94)","v":0},"",{"$f":"SUBTOTAL(9,G86:G94)","v":0},""]
[null,"Totale","Totale",null,{"$f":"SUBTOTAL(9,E5:E95)","v":0},{"$f":"IF(E96>0,SUBTOTAL(9,E5:E95)/E96,\"\")","v":""},{"$f":"SUBTOTAL(9,G5:G95)","v":0},""]
[]
[null,null,null,null,"pianificato",null,"confermato"]
[null,null,"Somma dei contributi totale €:",null,{"$f":"SUM(E5:E8,E14:E17,E23:E26,E32:E35,E41:E44,E50:E53,E59:E62,E68:E71,E77:E80)","v":0},null,{"$f":"SUM(G5:G8,G14:G17,G23:G26,G32:G35,G41:G44,G50:G53,G59:G62,G68:G71,G77:G80)","v":0}]
[null,null,"Somma dei contributi totale  %:",null,{"$f":"IF(AND(E99>0,E96>0),E99/E96,0)","v":0},null,{"$f":"IF(AND(G99>0,G96>0),G99/G96,0)","v":0}]
[]
[]
[]
[]
[]
[null,"Commenti","Commenti"]

{"sheet":"Tabelle2","index":1,"n_rows":12,"n_cols":6,"rows_kept":12,"cut":false,"hidden":true,"merged":[]}
[]
[null,"Dropdown Status","Dropdown Förderung","Dropdown Finanzierung","Dropdown Eigenmittel","Dropdown Eigenleistung"]
[null,"confermato","Contributo regionale","Minimo garantito","Liquidità","Accantonamenti"]
[null,"LOI","Contributo nazionale","Equity","Prestiti"]
[null,"in trattativa","Contributo europeo","Liquidità","Altro --> Inserire nei commenti"]
[null,"richiesto ---> decisione il -> Prego specificare nei commenti",null,"Accantonamenti di terzi"]
[null,"automatico",null,"Noleggio o cessione di materiale e/o servizi a titolo gratuito"]
[null,null,null,"Presales"]
[null,null,null,"Cofinanziamento"]
[null,null,null,"Coproduzione"]
[null,null,null,"Garanzie di distribuzione"]
[null,null,null,"Altro --> Inserire nei commenti"]